fUSD/lending_fUSD_20260112
["ID","MTS","AMOUNT","RATE_DAILY","PERIOD"]
[401414967,1768193453167,-1000.0,0.00017908,2]
[401414968,1768193453176,-1000.0,0.00017909,2]
[401414969,1768193453187,-350.68764993,0.00017909,2]
[401414970,1768193453197,-2109.39679,0.0001791,2]
[401414971,1768193453207,-350.68764993,0.00017927,2]
[401414972,1768193453218,-1000.0,0.00017936,2]
[401414973,1768193453228,-395.0,0.00017944,2]
[401414974,1768193453239,-350.68764993,0.00017945,2]
[401414975,1768193453254,-1000.0,0.00017955,2]
[401414976,1768193453265,-350.68764993,0.00017964,2]
[401414977,1768193453276,-565.40476895,0.00017966,2]
[401414978,1768193453287,-1000.0,0.00017966,2]
[401414979,1768193453297,-1000.0,0.00017969,2]
[401414980,1768193453308,-1000.0,0.0001797,2]
[401414981,1768193453319,-5888.0,0.0001797,2]
[401414982,1768193453330,-500.0,0.00017973,2]
[401414983,1768193453342,-381.34584895,0.00017973,2]
[401414984,1768193453353,-500.55153068,0.00017973,2]
[401414985,1768193453364,-503.67264874,0.00017973,2]
[401414986,1768193453375,-501.78685961,0.00017973,2]
[401414987,1768193453386,-503.85916191,0.00017973,2]
[401414988,1768193453398,-500.0,0.00017973,2]
[401414989,1768193453409,-501.47661499,0.00017973,2]
[401414990,1768193453420,-501.12911319,0.00017973,2]
[401414991,1768193453431,-501.38258594,0.00017973,2]
[401414992,1768193453441,-501.10571804,0.00017973,2]
[401414993,1768193453452,-515.69548792,0.00017973,2]
[401414994,1768193453463,-498.39272947,0.00017973,2]
[401414995,1768193453473,-644.05438872,0.00017973,2]
[401414996,1768193453484,-502.23302881,0.00017973,2]
[401414997,1768193453495,-500.0,0.00017973,2]
[401414998,1768193453506,-500.0,0.00017973,2]
[401414999,1768193453516,-500.0,0.00017973,2]
[401415000,1768193453526,-502.86808452,0.00017973,2]
[401415001,1768193453537,-153.49935164,0.00017973,2]
[401415002,1768193453547,-4431.472038,0.00017973,2]
[401415003,1768193453558,-156.283737,0.00017973,2]
[401415004,1768193453569,-2704.225356,0.00017973,2]
[401415005,1768193453581,-2704.225356,0.00017973,2]
[401415006,1768193453592,-949.908812,0.00017973,2]
[401415007,1768193453608,-2704.225356,0.00017973,2]
[401415008,1768193453619,-949.908812,0.00017973,2]
[401415009,1768193453630,-245.161888,0.00017973,2]
[401415010,1768193453641,-2704.225356,0.00017973,2]
[401415011,1768193453652,-312.570611,0.00017973,2]
[401415012,1768193453662,-970.748749,0.00017973,2]
[401415013,1768193453672,-949.908812,0.00017973,2]
[401415014,1768193453683,-245.161888,0.00017973,2]
[401415015,1768193453695,-151.0,0.00017973,2]
[401415016,1768193453705,-312.570611,0.00017973,2]
[401415017,1768193453716,-4431.472038,0.00017973,2]
[401415018,1768193453727,-1668.181417,0.00017973,2]
[401415019,1768193453738,-970.748749,0.00017973,2]
[401415020,1768193453749,-949.908812,0.00017973,2]
[401415021,1768193453761,-245.161888,0.00017973,2]
[401415022,1768193453771,-151.0,0.00017973,2]
[401415023,1768193453782,-151.0,0.00017973,2]
[401415024,1768193453792,-312.570611,0.00017973,2]
[401415025,1768193453803,-1668.181417,0.00017973,2]
[401415026,1768193453813,-970.748749,0.00017973,2]
[401415027,1768193453826,-4431.472038,0.00017973,2]
[401415028,1768193453836,-245.161888,0.00017973,2]
[401415029,1768193453846,-187.899798,0.00017973,2]
[401415030,1768193453858,-151.0,0.00017973,2]
[401415031,1768193453870,-312.570611,0.00017973,2]
[401415032,1768193453881,-1668.181417,0.00017973,2]
[401415033,1768193453891,-970.748749,0.00017973,2]
[401415034,1768193453901,-4431.472038,0.00017973,2]
[401415035,1768193453911,-1668.181417,0.00017973,2]
[401415036,1768193453920,-1159.429831,0.00017973,2]
[401415037,1768193453931,-1159.429831,0.00017973,2]
[401415038,1768193453942,-1619.066186,0.00017973,2]
[401415039,1768193453952,-1159.429831,0.00017973,2]
[401415040,1768193453962,-151.0,0.00017973,2]
[401415041,1768193453976,-1619.066186,0.00017973,2]
[401415042,1768193453987,-1647.039821,0.00017973,2]
[401415043,1768193453997,-1159.429831,0.00017973,2]
[401415044,1768193454008,-151.0,0.00017973,2]
[401415045,1768193454019,-1619.066186,0.00017973,2]
[401415046,1768193454029,-1647.039821,0.00017973,2]
[401415047,1768193454039,-151.0,0.00017973,2]
[401415048,1768193454050,-202.183274,0.00017973,2]
[401415049,1768193454060,-1619.066186,0.00017973,2]
[401415050,1768193454070,-1647.039821,0.00017973,2]
[401415051,1768193454083,-253.15414,0.00017973,2]
[401415052,1768193454093,-202.183274,0.00017973,2]
[401415053,1768193454107,-1647.039821,0.00017973,2]
[401415054,1768193454118,-151.0,0.00017973,2]
[401415055,1768193454128,-151.0,0.00017973,2]
[401415056,1768193454139,-202.183274,0.00017973,2]
[401415057,1768193454149,-151.0,0.00017973,2]
[401415058,1768193454160,-202.183274,0.00017973,2]
[401415059,1768193454171,-151.0,0.00017973,2]
[401415060,1768193454181,-151.0,0.00017973,2]
[401415061,1768193454191,-151.0,0.00017973,2]
[401415062,1768193454202,-151.0,0.00017973,2]
[401415063,1768193454212,-151.0,0.00017973,2]
[401415064,1768193454223,-325.126375,0.00017973,2]
[401415065,1768193454233,-151.0,0.00017973,2]
[401415066,1768193454243,-325.126375,0.00017973,2]
[401415067,1768193454254,-325.126375,0.00017973,2]
[401415068,1768193454264,-325.126375,0.00017973,2]
[401415069,1768193454275,-179.570681,0.00017973,2]
[401415070,1768193454285,-151.0,0.00017973,2]
[401415071,1768193454295,-151.0,0.00017973,2]
[401415072,1768193454306,-151.0,0.00017973,2]
[401415073,1768193454319,-151.0,0.00017973,2]
[401415074,1768193454330,-151.0,0.00017973,2]
[401415075,1768193454340,-151.0,0.00017973,2]
[401415076,1768193454350,-497.826362,0.00017973,2]
[401415077,1768193454361,-497.826362,0.00017973,2]
[401415078,1768193454371,-350.223287,0.00017973,2]
[401415079,1768193454382,-497.826362,0.00017973,2]
[401415080,1768193454392,-350.223287,0.00017973,2]
[401415081,1768193454402,-497.826362,0.00017973,2]
[401415082,1768193454413,-151.0,0.00017973,2]
[401415083,1768193454423,-350.223287,0.00017973,2]
[401415084,1768193454434,-151.0,0.00017973,2]
[401415085,1768193454444,-350.223287,0.00017973,2]
[401415086,1768193454455,-1276.752068,0.00017973,2]
[401415087,1768193454869,-151.0,0.00017973,2]
[401415088,1768193454896,-151.0,0.00017973,2]
[401415089,1768193454908,-1276.752068,0.00017973,2]
[401415090,1768193454918,-182.77568,0.00017973,2]
[401415091,1768193454928,-1276.752068,0.00017973,2]
[401415092,1768193454938,-1276.752068,0.00017973,2]
[401415093,1768193454949,-151.0,0.00017973,2]
[401415094,1768193454960,-151.0,0.00017973,2]
[401415095,1768193454971,-151.0,0.00017973,2]
[401415096,1768193454982,-1405.0,0.0001798,2]
[401415097,1768193454994,-3469.0,0.0001798,2]
[401415098,1768193455006,-1330.0,0.0001798,2]
[401415099,1768193455018,-614.0,0.0001798,2]
[401415100,1768193455028,-1267.0,0.0001798,2]
[401415101,1768193455039,-505.0,0.0001798,2]
[401415102,1768193455049,-914.0,0.0001798,2]
[401415103,1768193455060,-566.0,0.0001798,2]
[401415104,1768193455070,-150.0,0.0001798,2]
[401415105,1768193455079,-4821.0,0.0001798,2]
[401415106,1768193455090,-1000.0,0.00017981,2]
[401415107,1768193455103,-350.68764993,0.00017982,2]
[401415108,1768193455112,-1000.0,0.00017982,2]
[401415109,1768193455122,-152.92662848,0.00017982,2]
[401415110,1768193455131,-500.0,0.00017982,2]
[401415111,1768193455143,-1101.0,0.00017984,2]
[401415112,1768193455153,-1047.04298225,0.0001799,2]
[401415113,1768193455164,-1047.04298225,0.0001799,2]
[401415114,1768193455176,-319.66,0.00017992,2]
[401415115,1768193455186,-12507.8343262,0.00017992,2]
[401415116,1768193455196,-1000.0,0.00017992,2]
[401415117,1768193455205,-1110.78417922,0.00017999,5]
[401415118,1768193455216,-1110.78417923,0.00017999,5]
[401415119,1768193455226,-300.0,0.00017999,2]
[401415120,1768193455236,-300.0,0.00017999,2]
[401415121,1768193455245,-300.0,0.00017999,2]
[401415122,1768193455255,-666.0,0.00017999,2]
[401415123,1768193455267,-300.0,0.00017999,2]
[401415124,1768193455276,-1046.89,0.00017999,2]
[401415125,1768193455287,-1046.89,0.00017999,2]
[401415126,1768193455298,-1046.89,0.00017999,2]
[401415127,1768193455307,-1046.89,0.00017999,2]
[401415128,1768193455317,-1046.89,0.00017999,2]
[401415129,1768193455326,-1046.89,0.00017999,2]
[401415130,1768193455337,-1046.89,0.00017999,2]
[401415131,1768193455346,-1046.89,0.00017999,2]
[401415132,1768193455356,-1046.89,0.00017999,2]
[401415133,1768193455367,-1046.92509882,0.00017999,2]
[401415134,1768193455377,-300.0,0.00017999,2]
[401415135,1768193455387,-666.0,0.00017999,2]
[401415136,1768193455396,-155.99258279,0.00018,2]
[401415137,1768193455407,-156.71525667,0.00018,2]
[401415138,1768193455416,-154.38953807,0.00018,2]
[401415139,1768193455426,-154.70586823,0.00018,2]
[401415140,1768193455435,-155.07098725,0.00018,2]
[401415141,1768193455445,-151.66154832,0.00018,2]
[401415142,1768193455455,-151.45444701,0.00018,2]
[401415143,1768193455466,-155.70825827,0.00018,2]
[401415144,1768193455475,-152.37123583,0.00018,2]
[401415145,1768193455484,-350.68764993,0.00018,2]
[401415146,1768193455494,-248.59699216,0.00018,2]
[401415147,1768193455504,-152.34445976,0.00018,2]
[401415148,1768193455518,-3083088.17713497,0.00018,2]
[401415149,1768193455530,-624069.53469676,0.00018,2]
[401415150,1768193456277,-661.95,0.00017041,2]
[401415151,1768193456287,-179.28,0.00017178,2]
[401415152,1768193456297,-171.53,0.00017178,2]
[401415153,1768193456307,-1460.31117054,0.0001798,2]
[401415154,1768193456320,-339.6165,0.0001798,2]
[401415155,1768193456334,-365.49266704,0.0001798,2]
[401415156,1768193456375,-271.57966242,0.0001798,2]
[401415157,1768193456384,-445.41430096,0.00018,2]
[401415158,1768193456740,-29.99309861,0.000179,2]
[401415159,1768193456760,-1255.45049712,0.000179,2]
[401415160,1768193456770,-3347.77077869,0.00018,2]
[401415161,1768193563810,-183.50674376,0.00012395,2]
[401415162,1768193563838,-1357.323801,0.00012485,2]
[401415163,1768193564090,-1024.33891048,0.00012495,2]
[401415164,1768193564106,-10000.01,0.00012495,2]
[401415165,1768193564125,-2040.53625931,0.00012495,2]
[401415166,1768193564137,-835.79754021,0.00012495,2]
[401415167,1768193564147,-183.50674376,0.00012495,2]
[401415168,1768193564156,-500.0,0.00012548,2]
[401415169,1768193564167,-500.0,0.00012587,2]
[401415170,1768193564176,-500.0,0.00012587,2]
[401415171,1768193564185,-500.0,0.00012587,2]
[401415172,1768193564194,-500.0,0.00012587,2]
[401415173,1768193564207,-500.0,0.00012587,2]
[401415174,1768193564216,-500.0,0.00012587,2]
[401415175,1768193564225,-500.0,0.00012587,2]
[401415176,1768193564235,-500.0,0.00012587,2]
[401415177,1768193564244,-500.0,0.00012587,2]
[401415178,1768193564254,-500.0,0.00012587,2]
[401415179,1768193564264,-500.0,0.00012587,2]
[401415180,1768193564274,-500.0,0.00012587,2]
[401415181,1768193564283,-440.16945672,0.00012587,2]
[401415182,1768193575349,-94.86535738,0.00012587,2]
[401415183,1768193575379,-500.0,0.00012587,2]
[401415184,1768193596719,1200.0,0.00012587,2]
[401415185,1768193605952,500.0,0.00012548,2]
[401415186,1768193613698,163.98083937,0.00012495,2]
[401415187,1768193615042,1110.78417922,0.00012587,3]
[401415188,1768193633867,1600.0,0.000129,4]
[401415189,1768193641708,300.0,0.00012587,2]
[401415190,1768193642308,150.0,0.00012587,2]
[401415191,1768193648817,569.15700074,0.00012495,2]
[401415192,1768193685950,5927.14144513,0.0001249,2]
[401415193,1768193685975,6293.61847687,0.0001249,2]
[401415194,1768193701584,1200.0,0.00012587,2]
[401415195,1768193726560,-169.75464637,0.00012588,2]
[401415196,1768193729887,-191.61381049,0.00012588,2]
[401415197,1768193731953,-327.69669949,0.00012588,2]
[401415198,1768193734422,-181.29810512,0.00012588,2]
[401415199,1768193735893,500.0,0.00012587,2]
[401415200,1768193737261,500.0,0.00012587,2]
[401415201,1768193737321,500.0,0.00012587,2]
[401415202,1768193737374,-296.10975086,0.00012588,2]
[401415203,1768193737476,500.0,0.00012587,2]
[401415204,1768193738525,-241.02894289,0.00012588,2]
[401415205,1768193742805,-155.85892198,0.00012588,2]
[401415206,1768193743176,500.19471336,0.00012587,2]
[401415207,1768193743216,6.19680977,0.00012587,2]
[401415208,1768193743243,225.54697363,0.00012587,2]
[401415209,1768193743285,500.0,0.00012587,2]
[401415210,1768193743326,500.0,0.00012587,2]
[401415211,1768193743376,230.9921761,0.00012587,2]
[401415212,1768193743429,500.0,0.00012587,2]
[401415213,1768193744334,500.77635178,0.00012587,2]
[401415214,1768193744404,500.0,0.00012587,2]
[401415215,1768193745292,162.08921454,0.00012587,2]
[401415216,1768193745341,500.0,0.00012587,2]
[401415217,1768193745422,222.3347843,0.00012587,2]
[401415218,1768193745466,-152.74964676,0.00012588,2]
[401415219,1768193745525,500.0,0.00012587,2]
[401415220,1768193745585,500.0,0.00012587,2]
[401415221,1768193745652,500.0,0.00012587,2]
[401415222,1768193745756,500.0,0.00012587,2]
[401415223,1768193745806,500.0,0.00012587,2]
[401415224,1768193746906,-596.10329838,0.00012588,2]
[401415225,1768193748144,484.72176728,0.00012587,2]
[401415226,1768193748191,204.00964978,0.00012587,2]
[401415227,1768193748698,-214.45326535,0.00012588,2]
[401415228,1768193751489,-253.46353561,0.00012588,2]
[401415229,1768193753967,-340.26343159,0.00012588,2]
[401415230,1768193757813,-311.8925321,0.00012588,2]
[401415231,1768193759352,-495.81137759,0.00012588,2]
[401415232,1768193761151,399.95189395,0.00012587,2]
[401415233,1768193762067,-354.73263195,0.00012588,2]
[401415234,1768193765887,-218.10476758,0.00012588,2]
[401415235,1768193767495,-651.02214544,0.00012588,2]
[401415236,1768193771465,-491.34645316,0.00012588,2]
[401415237,1768193774567,-213.14254782,0.00012588,2]
[401415238,1768193776260,-343.46428555,0.00012588,2]
[401415239,1768193779392,-275.66674072,0.00012588,2]
[401415240,1768193781197,-442.57908357,0.00012588,2]
[401415241,1768193786618,-184.55796464,0.00012588,2]
[401415242,1768193789876,-300.08343105,0.00012588,2]
[401415243,1768193790246,379.4380005,0.00012488,2]
[401415244,1768193792317,-190.79785253,0.00012588,2]
[401415245,1768193795619,-209.83036742,0.00012588,2]
[401415246,1768193798389,-342.07477666,0.00012588,2]
[401415247,1768193799040,500.0,0.00012586,2]
[401415248,1768193802513,-364.91422489,0.00012588,2]
[401415249,1768193806241,-220.23941475,0.00012588,2]
[401415250,1768193808537,-295.90716162,0.00012588,2]
[401415251,1768193811942,-296.16071329,0.00012588,2]
[401415252,1768193814568,-255.04792585,0.00012588,2]
[401415253,1768193816709,500.0,0.00012586,2]
[401415254,1768193817413,500.0,0.00012586,2]
[401415255,1768193820142,-180.60937,0.00012588,2]
[401415256,1768193822428,150.0,0.00012587,2]
[401415257,1768193824203,-431.31728174,0.00012588,2]
[401415258,1768193826214,442.52458179,0.00012587,2]
[401415259,1768193826509,-236.43861474,0.00012588,2]
[401415260,1768193834138,-462.74262548,0.00012588,2]
[401415262,1768193837106,-405.30337241,0.00012588,2]
[401415266,1768193840523,-200.75092673,0.00012588,2]
[401415267,1768193842609,97.62460635,0.00012587,2]
[401415268,1768193842639,402.37539365,0.00012587,2]
[401415269,1768193842690,500.0,0.00012587,2]
[401415270,1768193842753,500.0,0.00012587,2]
[401415271,1768193842805,294.46695685,0.00012587,2]
[401415272,1768193842851,-328.03260443,0.00012588,2]
[401415273,1768193845820,-302.00082719,0.00012588,2]
[401415274,1768193847036,-253.1701093,0.00012588,2]
[401415275,1768193848489,-1077.46085038,0.00012588,2]
[401415276,1768193853035,-264.0,0.00012588,2]
[401415277,1768193855417,-197.99917281,0.00012588,2]
[401415278,1768193857729,-188.95128885,0.00012588,2]
[401415279,1768193862740,-237.89696486,0.00012588,2]
[401415280,1768193869932,-206.41822793,0.00012588,2]
[401415281,1768193871313,-217.69170634,0.00012588,2]
[401415282,1768193873454,-394.69662759,0.00012588,2]
[401415283,1768193877647,-271.38861775,0.00012588,2]
[401415284,1768193879909,-300.0,0.00012588,2]
[401415285,1768193881290,300.0,0.00012587,2]
[401415286,1768193882497,-450.30390765,0.00012588,2]
[401415287,1768193885250,-203.99999476,0.00012588,2]
[401415288,1768193886918,-367.0331,0.00012588,2]
[401415289,1768193889746,-465.28404926,0.00012588,2]
[401415290,1768193891880,-621.2467606,0.00012588,2]
[401415291,1768193893826,150.94357243,0.00012488,2]
[401415292,1768193895483,-326.5415754,0.00012588,2]
[401415293,1768193895821,1200.0,0.00012587,2]
[401415294,1768193897193,-344.86524192,0.00012588,2]
[401415295,1768193900927,-307.59393408,0.00012588,2]
[401415296,1768193902017,-202.90743206,0.00012588,2]
[401415297,1768193903714,-412.5543034,0.00012588,2]
[401415298,1768193905345,-167.55253785,0.00012588,2]
[401415299,1768193908887,-166.13258014,0.00012588,2]
[401415300,1768193911530,-382.00161189,0.00012588,2]
[401415301,1768193915521,-292.82211161,0.00012588,2]
[401415302,1768193918492,-399.92843578,0.00012588,2]
[401415303,1768193920059,-341.16755733,0.00012588,2]
[401415304,1768193926031,-255.03761572,0.00012588,2]
[401415305,1768193930723,-503.79482695,0.00012588,2]
[401415306,1768193930781,252.958667,0.00012488,2]
[401415307,1768193934166,-250.0,0.00012588,2]
[401415308,1768193936614,-269.66769649,0.00012588,2]
[401415309,1768193938982,-325.26576385,0.00012588,2]
[401415310,1768193941249,300.0,0.00012587,2]
[401415311,1768193942264,-200.74146327,0.00012588,2]
[401415312,1768193945057,-192.71582831,0.00012588,2]
[401415313,1768193945714,166.66,0.00012331,2]
[401415314,1768193947335,-358.45070825,0.00012588,2]
[401415315,1768193951423,-195.00534997,0.00012588,2]
[401415316,1768193952860,-275.00779114,0.00012588,2]
[401415317,1768193956806,-179.70866927,0.00012588,2]
[401415318,1768193959666,-320.29133073,0.00012588,2]
[401415319,1768193961509,-172.83258673,0.00012588,2]
[401415320,1768193965720,-503.15987298,0.00012588,2]
[401415321,1768193967258,-268.51352137,0.00012588,2]
[401415322,1768193968709,-231.48647863,0.00012588,2]
[401415323,1768193971217,-210.73445015,0.00012588,2]
[401415324,1768193973703,-195.20792808,0.00012588,2]
[401415325,1768193977095,-250.0,0.00012588,2]
[401415326,1768193981781,-201.04090142,0.00012588,2]
[401415327,1768193985379,-239.10720941,0.00012588,2]
[401415328,1768193990081,-395.15780787,0.00012588,2]
[401415329,1768193993381,-179.96458829,0.00012588,2]
[401415330,1768193997634,-225.65242709,0.00012588,2]
[401415331,1768194000356,-170.00404283,0.00012588,2]
[401415332,1768194001287,300.0,0.00012587,2]
[401415333,1768194001326,1200.0,0.00012587,2]
[401415334,1768194002385,150.0,0.00012587,2]
[401415335,1768194002893,300.0,0.00012587,2]
[401415336,1768194004841,-179.3342065,0.00012588,2]
[401415337,1768194008462,500.0,0.00012587,2]
[401415338,1768194008523,272.93515273,0.00012587,2]
[401415339,1768194008725,-262.4347674,0.00012588,2]
[401415340,1768194013290,-383.86966997,0.00012588,2]
[401415341,1768194017349,-261.36385949,0.00012588,2]
[401415342,1768194019378,-212.64289387,0.00012588,2]
[401415343,1768194021516,503.15987298,0.00012587,2]
[401415344,1768194021578,500.0,0.00012587,2]
[401415345,1768194021913,500.0,0.00012587,2]
[401415346,1768194022257,197.32392457,0.00012587,2]
[401415347,1768194026465,-314.36560181,0.00012588,2]
[401415348,1768194033106,-318.68313666,0.00012588,2]
[401415349,1768194035851,-203.39282248,0.00012588,2]
[401415350,1768194037369,-192.96887362,0.00012588,2]
[401415351,1768194039033,-184.46511752,0.00012588,2]
[401415352,1768194043516,399.897434,0.00012587,2]
[401415353,1768194043745,-414.07977694,0.00012588,2]
[401415354,1768194044628,1109.28902579,0.00012488,2]
[401415355,1768194044653,10000.01,0.00012488,2]
[401415356,1768194044678,2530.05445562,0.00012488,2]
[401415357,1768194045858,-290.29070041,0.00012588,2]
[401415358,1768194048682,-324.65243316,0.00012588,2]
[401415359,1768194051006,-300.98183784,0.00012588,2]
[401415360,1768194053173,-169.69853594,0.00012588,2]
[401415361,1768194054938,-227.8,0.00012588,2]
[401415362,1768194059560,-756.187682,0.00012588,2]
[401415363,1768194062136,-424.01788079,0.00012588,2]
[401415364,1768194065342,-277.104718,0.00012588,2]
[401415365,1768194066989,-521.84831812,0.00012588,2]
[401415366,1768194070902,168.63911134,0.00012488,2]
[401415367,1768194071088,-264.77940075,0.00012588,2]
[401415368,1768194072174,7301.31643304,0.00012488,2]
[401415369,1768194072202,4118.38805779,0.00012488,2]
[401415370,1768194074739,-222.23209753,0.00012588,2]
[401415371,1768194076913,-163.59538386,0.00012588,2]
[401415372,1768194077101,1120.92,0.00012547,2]
[401415373,1768194079457,-303.69057623,0.00012588,2]
[401415374,1768194080938,-346.79869449,0.00012588,2]
[401415375,1768194084342,625.634271,0.00012524,2]
[401415376,1768194085868,187.75656329,0.00012488,2]
[401415377,1768194085916,500.0,0.00012587,2]
[401415378,1768194085981,454.29745837,0.00012587,2]
[401415379,1768194086908,-462.60960301,0.00012588,2]
[401415380,1768194088625,-226.62461992,0.00012588,2]
[401415381,1768194090723,-221.84483011,0.00012588,2]
[401415382,1768194093139,240.729,0.00012336,2]
[401415383,1768194093180,2752.28464955,0.00012336,2]
[401415384,1768194093205,725.83135045,0.00012336,2]
[401415385,1768194093826,-289.88821402,0.00012588,2]
[401415386,1768194096982,-172.32129809,0.00012588,2]
[401415387,1768194102042,-495.81349549,0.00012588,2]
[401415388,1768194103753,-578.3391022,0.00012588,2]
[401415389,1768194105821,-160.49509769,0.00012588,2]
[401415390,1768194108977,-265.35230462,0.00012588,2]
[401415391,1768194112044,-275.7582736,0.00012588,2]
[401415392,1768194115368,-265.0,0.00012588,2]
[401415393,1768194118922,-185.30165895,0.00012588,2]
[401415394,1768194121159,-294.27108077,0.00012588,2]
[401415395,1768194124966,-364.79116376,0.00012588,2]
[401415396,1768194127099,-248.11986185,0.00012588,2]
[401415397,1768194129401,151.0,0.0001258,2]
[401415398,1768194129834,151.0,0.0001258,2]
[401415399,1768194130377,-160.16809642,0.00012588,2]
[401415400,1768194130502,151.0,0.0001258,2]
[401415401,1768194131113,151.0,0.0001258,2]
[401415402,1768194131721,151.0,0.0001258,2]
[401415403,1768194132344,151.0,0.0001258,2]
[401415404,1768194132624,-451.80073499,0.00012588,2]
[401415405,1768194132949,151.0,0.0001258,2]
[401415406,1768194133422,202.52855456,0.0001258,2]
[401415407,1768194133588,151.0,0.0001258,2]
[401415408,1768194134201,151.0,0.0001258,2]
[401415409,1768194135121,151.0,0.0001258,2]
[401415410,1768194135211,-374.66500799,0.00012588,2]
[401415411,1768194135400,491.34645316,0.00012488,2]
[401415412,1768194135551,151.0,0.0001258,2]
[401415413,1768194136168,151.0,0.0001258,2]
[401415414,1768194136523,-210.68113283,0.00012588,2]
[401415415,1768194136790,151.0,0.0001258,2]
[401415416,1768194138297,-174.6720109,0.00012588,2]
[401415417,1768194141431,-207.1827983,0.00012588,2]
[401415418,1768194141681,530.44606972,0.0001258,2]
[401415419,1768194143716,-235.66563197,0.00012588,2]
[401415420,1768194145593,500.0,0.0001258,2]
[401415421,1768194146210,500.0,0.0001258,2]
[401415422,1768194146855,575.73448782,0.0001258,2]
[401415423,1768194147396,-200.10748678,0.00012588,2]
[401415424,1768194150775,-312.30184415,0.00012588,2]
[401415425,1768194153316,-182.35978323,0.00012588,2]
[401415426,1768194155745,-242.61970597,0.00012588,2]
[401415427,1768194156792,999.0,0.00012536,3]
[401415428,1768194157712,500.0,0.00012536,2]
[401415429,1768194158332,-242.82934068,0.00012588,2]
[401415430,1768194160060,-298.64658488,0.00012588,2]
[401415431,1768194165205,-280.02587259,0.00012588,2]
[401415432,1768194181250,300.0,0.00012587,2]
[401415433,1768194182926,300.0,0.00012587,2]
[401415434,1768194182992,150.0,0.00012587,2]
[401415435,1768194194001,500.0,0.00012587,2]
[401415436,1768194194050,536.03291742,0.00012587,2]
[401415437,1768194211173,168.63911132,0.00012488,2]
[401415439,1768194265381,-267.34057516,0.00012588,2]
[401415440,1768194271083,1500.0,0.00012509,2]
[401415441,1768194280166,500.0,0.00012488,2]
[401415442,1768194280346,56.45105555,0.00012488,2]
[401415443,1768194280371,443.54894445,0.00012488,2]
[401415444,1768194280724,500.0,0.00012488,2]
[401415445,1768194281120,500.0,0.00012488,2]
[401415446,1768194281527,500.0,0.00012488,2]
[401415447,1768194281943,500.0,0.00012488,2]
[401415448,1768194282362,500.0,0.00012488,2]
[401415449,1768194282854,500.0,0.00012488,2]
[401415450,1768194283289,500.0,0.00012488,2]
[401415451,1768194283701,500.0,0.00012488,2]
[401415452,1768194284168,500.0,0.00012488,2]
[401415453,1768194284608,500.0,0.00012488,2]
[401415454,1768194285021,500.0,0.00012488,2]
[401415455,1768194285552,500.0,0.00012488,2]
[401415456,1768194285965,500.0,0.00012488,2]
[401415457,1768194286399,500.0,0.00012488,2]
[401415458,1768194286833,500.0,0.00012488,2]
[401415459,1768194287237,500.0,0.00012488,2]
[401415460,1768194287777,500.0,0.00012488,2]
[401415461,1768194288204,500.0,0.00012488,2]
[401415462,1768194288689,500.0,0.00012488,2]
[401415463,1768194289084,56.46105555,0.00012488,2]
[401415464,1768194289108,443.53894445,0.00012488,2]
[401415465,1768194289508,500.0,0.00012488,2]
[401415466,1768194289974,500.0,0.00012488,2]
[401415467,1768194291085,500.0,0.00012488,2]
[401415468,1768194291147,500.0,0.00012488,2]
[401415469,1768194291218,500.0,0.00012488,2]
[401415470,1768194291649,500.0,0.00012488,2]
[401415471,1768194292073,500.0,0.00012488,2]